bitfinex/quotes_SOLUSD_20220302
["timestamp","ask_amount","ask_price","bid_price","bid_amount"]
[1646182539088,1.96020636,98.823,98.712,5.0]
[1646182539286,102.5,98.824,98.712,5.0]
[1646182539287,1.80702825,98.808,98.712,5.0]
[1646182539688,1.59753731,98.805,98.712,5.0]
[1646182539890,0.54698607,98.804,98.712,5.0]
[1646182540089,12.15,98.79,98.712,5.0]
[1646182540390,50.66056128,98.807,98.713,2.57366348]
[1646182540589,50.66056128,98.807,98.714,32.79048864]
[1646182540989,12.15,98.8,98.714,32.79048864]
[1646182541188,4.049,98.806,98.714,32.79048864]
[1646182541590,50.66056128,98.807,98.714,32.79048864]
[1646182542192,4.049,98.806,98.714,32.79048864]
[1646182542390,50.66056128,98.807,98.715,2.57366348]
[1646182542589,12.15,98.84,98.715,2.57366348]
[1646182542790,12.15,98.84,98.715,5.0]
[1646182542791,4.049,98.838,98.715,5.0]
[1646182543091,102.5,98.828,98.715,5.0]
[1646182543290,102.5,98.828,98.716,4.049]
[1646182543690,155.68034442,98.827,98.716,4.049]
[1646182544093,155.68034442,98.827,98.72,15.1907]
[1646182544290,155.68034442,98.827,98.721,4.049]
[1646182544691,155.68034442,98.827,98.715,4.049]
[1646182544900,155.68034442,98.827,98.727,5.0]
[1646182545093,155.68034442,98.827,98.729,3.35893458]
[1646182545292,53.18034442,98.827,98.73,4.049]
[1646182545494,28.981,98.866,98.73,21.81206348]
[1646182545695,211.33529449,98.881,98.75,50.608]
[1646182545696,4.048,98.878,98.75,50.608]
[1646182545895,4.048,98.878,98.731,2.57366348]
[1646182545896,4.048,98.889,98.76,12.15]
[1646182546095,4.046,98.908,98.761,106.546]
[1646182546295,106.546,98.908,98.761,106.546]
[1646182546498,102.5,98.906,98.762,27.62255589]
[1646182546698,4.046,98.905,98.763,4.046]
[1646182546896,54.07089538,98.907,98.77,15.1824]
[1646182547098,54.07089538,98.907,98.781,8.52686733]
[1646182547397,54.07089538,98.907,98.782,6.61966348]
[1646182547797,54.07089538,98.907,98.783,2.57366348]
[1646182547997,54.07089538,98.907,98.784,4.046]
[1646182548197,54.07089538,98.907,98.81,15.1754]
[1646182548403,102.5,98.906,98.81,15.1754]
[1646182548599,1.95050004,98.905,98.771,4.046]
[1646182548802,4.47115814,98.905,98.762,4.046]
[1646182549002,2.08206438,98.903,98.761,48.71]
[1646182549201,102.5,98.889,98.761,48.71]
[1646182549498,12.15,98.89,98.771,27.72327374]
[1646182549499,53.66724959,98.888,98.771,27.72327374]
[1646182549698,51.96426542,98.888,98.772,4.046]
[1646182550099,51.96426542,98.888,98.772,6.61966348]
[1646182550697,51.96426542,98.888,98.78,15.1825]
[1646182550898,51.96426542,98.888,98.781,4.046]
[1646182551099,51.96426542,98.888,98.781,2.57366348]
[1646182551299,51.96426542,98.888,98.782,6.61966348]
[1646182551699,51.96426542,98.888,98.783,2.57366348]
[1646182551901,51.96426542,98.888,98.784,4.046]
[1646182552100,51.96426542,98.888,98.801,8.42614948]
[1646182552700,2.5206581,98.887,98.785,2.57366348]
[1646182553703,2.5206581,98.887,98.786,29.5324904]
[1646182554306,51.96426542,98.888,98.787,2.57366348]
[1646182554804,1.85267859,98.887,98.784,4.046]
[1646182555006,2.39792289,98.887,98.784,4.046]
[1646182555204,4.14395971,98.886,98.784,4.046]
[1646182555505,0.67848377,98.885,98.784,4.046]
[1646182555705,3.19914187,98.885,98.784,4.046]
[1646182555904,2.5206581,98.884,98.785,34.9172992]
[1646182556304,1.62330161,98.886,98.785,34.9172992]
[1646182556505,51.96426542,98.888,98.785,34.9172992]
[1646182556706,51.96426542,98.888,98.786,2.57366348]
[1646182557108,51.96426542,98.888,98.787,11.30693263]
[1646182557306,51.96426542,98.888,98.79,12.15]
[1646182557709,51.96426542,98.888,98.791,2.57366348]
[1646182557907,51.96426542,98.888,98.81,15.1784]
[1646182558108,51.96426542,98.888,98.811,1.23212402]
[1646182558306,102.5,98.887,98.811,1.23212402]
[1646182560312,51.96426542,98.888,98.811,1.23212402]
[1646182560508,102.5,98.887,98.811,1.23212402]
[1646182560910,51.96426542,98.888,98.82,15.1778]
[1646182561508,102.5,98.887,98.802,5.0]
[1646182562107,0.4502911,98.886,98.791,2.57366348]
[1646182562307,0.4502911,98.886,98.76,12.15]
[1646182562308,0.4502911,98.886,98.78,2.57366348]
[1646182562510,0.4502911,98.886,98.8,15.1808]
[1646182562708,102.5,98.887,98.8,15.1808]
[1646182563110,102.5,98.887,98.8,15.73902628]
[1646182563810,105.02717503,98.887,98.8,15.1808]
[1646182564709,105.02717503,98.887,98.785,31.09991068]
[1646182564710,1.63557191,98.886,98.785,31.09991068]
[1646182565111,2.52717503,98.885,98.785,31.09991068]
[1646182565509,0.51876253,98.877,98.785,31.09991068]
[1646182565712,0.51876253,98.877,98.79,15.1832]
[1646182565910,102.5,98.879,98.79,15.1832]
[1646182566710,102.5,98.886,98.79,15.1832]
[1646182567812,102.5,98.885,98.79,15.1832]
[1646182568012,4.046,98.897,98.791,2.57366348]
[1646182568211,23.1151,98.909,98.82,15.1786]
[1646182568415,23.1151,98.909,98.821,5.04951254]
[1646182569015,102.5,98.908,98.821,5.04951254]
[1646182569213,4.046,98.916,98.83,15.1776]
[1646182569414,5.0,98.926,98.83,15.1776]
[1646182569614,5.0,98.926,98.831,2.57366348]
[1646182570221,102.5,98.943,98.831,2.57366348]
[1646182570417,102.5,98.943,98.835,5.0]
[1646182570616,102.5,98.943,98.831,2.57366348]
[1646182570816,102.5,98.943,98.837,26.9322877]
[1646182571017,102.5,98.943,98.85,15.1728]
[1646182573421,102.5,98.943,98.852,9.21713552]
[1646182573720,102.5,98.943,98.871,26.9322877]
[1646182573921,50.22876977,98.944,98.871,26.9322877]
[1646182574122,50.22876977,98.944,98.872,2.57366348]
[1646182574321,24.9918,98.957,98.872,2.57366348]
[1646182574524,4.043,98.981,98.872,2.57366348]
[1646182574720,49.83552421,98.996,98.872,2.57366348]
[1646182574721,1.39892421,98.992,98.88,15.1695]
[1646182574923,103.89892421,98.995,98.88,15.1695]
[1646182575120,102.5,98.995,98.882,5.0]
[1646182575322,102.5,98.993,98.882,5.0]
[1646182575521,102.5,98.993,98.883,2.57366348]
[1646182575723,54.15884164,98.994,98.911,9.21713552]
[1646182576739,102.5,98.993,98.911,9.21713552]
[1646182576939,1.7986103,98.992,98.911,9.21713552]
[1646182577539,2.52717503,98.991,98.911,9.21713552]
[1646182578340,102.5,98.993,98.911,9.21713552]
[1646182578539,48.4366,98.996,98.911,9.21713552]
[1646182579540,47.57989657,98.995,98.911,9.21713552]
[1646182580139,47.57989657,98.995,98.92,15.1638]
[1646182583345,102.5,98.994,98.92,15.1638]
[1646182583547,0.51231765,98.993,98.92,15.1638]
[1646182583743,0.51231765,98.993,98.902,5.0]
[1646182583943,2.61977449,98.988,98.902,5.0]
[1646182584144,2.61977449,98.988,98.849,15.4142]
[1646182584344,2.61977449,98.988,98.82,12.15]
[1646182584544,2.53350996,98.985,98.848,2.57366348]
[1646182584843,102.5,98.966,98.868,31.30278623]
[1646182585045,0.93745647,98.964,98.88,15.169]
[1646182585645,0.93745647,98.964,98.906,4.84663699]
[1646182585947,43.91180543,98.967,98.906,4.84663699]
[1646182586344,43.91180543,98.967,98.91,15.1654]
[1646182587948,150.9366,98.996,98.911,2.57366348]
[1646182588151,102.5,98.996,98.93,15.1603]
[1646182588849,59.20365115,98.995,98.931,27.22121649]
[1646182589051,59.20365115,98.995,98.94,15.1609]
[1646182592054,102.5,99.022,98.94,15.1609]
[1646182592255,102.5,99.043,98.941,2.57366348]
[1646182592454,102.5,99.043,98.97,15.156]
[1646182593055,102.5,99.041,98.97,15.156]
[1646182593455,102.5,99.041,98.941,2.57366348]
[1646182593658,1.67819482,99.038,98.91,22.7179]
[1646182593855,0.65377869,99.037,98.922,2.57366348]
[1646182594058,0.65377869,99.035,98.912,5.0]
[1646182594256,1.88349209,99.018,98.91,22.7179]
[1646182594556,0.65377869,99.014,98.913,32.45032667]
[1646182594755,1.75473594,99.015,98.913,32.45032667]
[1646182594955,104.22115305,99.009,98.93,15.1614]
[1646182595157,104.22115305,99.009,98.93,18.86049655]
[1646182595555,0.45121866,99.008,98.93,18.86049655]
[1646182595958,104.22115305,99.009,98.93,18.86049655]
[1646182597756,4.041,99.016,98.95,15.1583]
[1646182597956,57.88426559,99.017,98.951,28.21485604]
[1646182598759,102.5,99.016,98.95,15.1583]
[1646182598958,102.5,99.016,98.952,2.57366348]
[1646182599161,102.5,99.016,98.95,15.1583]
[1646182599357,102.5,99.016,98.93,15.1612]
[1646182599757,102.5,99.009,98.93,15.1612]
[1646182599960,102.5,99.009,98.9,50.5432]
[1646182600359,1.39892421,99.008,98.9,50.5432]
[1646182600958,14.09081292,99.01,98.9,50.5432]
[1646182600959,102.5,98.999,98.92,15.1638]
[1646182601161,102.5,98.997,98.92,15.1638]
[1646182603762,1.39892421,98.995,98.92,15.1638]
[1646182604161,1.39892421,98.992,98.92,15.1638]
[1646182604362,1.39892421,98.99,98.92,15.1638]
[1646182604560,1.39892421,98.991,98.92,15.1638]
[1646182604761,1.39892421,98.993,98.92,15.1638]
[1646182605163,1.39892421,98.992,98.92,15.1638]
[1646182605462,1.39892421,98.991,98.92,15.1638]
[1646182605663,1.39892421,98.99,98.92,15.1638]
[1646182605863,1.39892421,98.991,98.92,15.1638]
[1646182606062,1.39892421,98.99,98.92,15.1638]
[1646182606262,1.39892421,98.989,98.92,15.1638]
[1646182607763,102.5,98.997,98.92,15.1638]
[1646182607764,1.39892421,98.991,98.92,15.1638]
[1646182608569,1.39892421,98.992,98.92,15.1638]
[1646182608767,1.39892421,98.991,98.92,15.1638]
[1646182609070,1.39892421,98.992,98.92,15.1638]
[1646182609266,1.39892421,98.991,98.92,15.1638]
[1646182609665,1.39892421,98.99,98.92,15.1638]
[1646182609868,1.39892421,98.992,98.92,15.1638]
[1646182610867,1.39892421,98.99,98.92,15.1638]
[1646182611469,1.39892421,98.989,98.92,15.1638]
[1646182611669,1.39892421,98.99,98.92,15.1638]
[1646182612166,1.39892421,98.989,98.92,15.1638]
[1646182614370,1.39892421,98.994,98.92,15.1638]
[1646182614568,1.39892421,99.008,98.921,26.87181622]
[1646182614767,1.39892421,99.008,98.94,15.1582]
[1646182614969,1.39892421,99.013,98.94,15.1582]
[1646182615170,1.39892421,99.012,98.94,15.1582]
[1646182615371,57.35431452,99.011,98.941,5.20718261]
[1646182615568,58.75323873,99.011,98.941,5.20718261]
[1646182615772,57.35431452,99.011,98.941,7.78084609]
[1646182616170,57.35431452,99.011,98.942,2.57366348]
[1646182617172,57.35431452,99.011,98.95,15.1581]
[1646182617371,1.39892421,99.016,98.95,15.1581]
[1646182617972,1.39892421,99.01,98.95,15.1581]
[1646182618172,1.39892421,99.009,98.95,15.1581]
[1646182618372,0.45365827,99.007,98.941,5.20718261]
[1646182618572,1.85258248,99.007,98.941,5.20718261]
[1646182618773,1.39892421,98.999,98.922,4.041]
[1646182618974,1.39892421,98.998,98.914,2.57366348]
[1646182619477,1.39892421,98.996,98.914,2.57366348]
[1646182619673,1.39892421,98.996,98.922,29.73476447]
[1646182619873,102.5,98.993,98.922,29.73476447]
[1646182620178,102.5,98.993,98.93,15.1615]
[1646182621377,1.39892421,98.995,98.93,15.1615]
[1646182621776,1.39892421,99.009,98.93,15.1615]
[1646182621978,1.39892421,99.005,98.93,15.1615]
[1646182622178,1.39892421,99.004,98.93,15.1615]
[1646182622376,1.39892421,99.011,98.931,2.57366348]
[1646182622576,1.39892421,99.011,98.95,15.1586]
[1646182622777,1.39892421,99.011,98.951,6.41465875]
[1646182622977,1.39892421,99.012,98.951,6.41465875]
[1646182623577,59.89408153,99.014,98.951,6.41465875]
[1646182623778,1.39892421,99.013,98.951,6.41465875]
[1646182624179,103.89892421,99.013,98.95,15.1586]
[1646182624379,1.39892421,99.01,98.931,2.57366348]
[1646182624582,1.39892421,99.003,98.93,15.1611]
[1646182624804,1.39892421,98.996,98.91,27.7179]
[1646182625081,1.39892421,98.995,98.91,27.7179]
[1646182625282,103.89892421,98.994,98.924,36.03075321]
[1646182625580,103.89892421,98.994,98.91,5.0]
[1646182625783,0.51896156,98.99,98.894,14.9789]
[1646182625981,1.39892421,98.983,98.894,14.9789]
[1646182626382,1.39892421,98.982,98.897,5.0]
[1646182626581,1.39892421,98.982,98.924,35.65998265]
[1646182627483,1.39892421,98.993,98.924,35.65998265]
[1646182627682,51.70541946,98.995,98.924,35.65998265]
[1646182629084,51.70541946,98.995,98.93,15.1624]
[1646182631291,102.5,99.018,98.93,15.1624]
[1646182631292,1.39892421,99.002,98.93,15.1624]
[1646182632410,1.39892421,99.001,98.93,15.1624]
[1646182634014,10.08017024,99.0,98.93,15.1624]
[1646182634217,102.5,98.999,98.93,15.1624]
[1646182634415,112.58017024,98.999,98.93,15.1624]
[1646182634818,102.5,98.997,98.93,15.1624]
[1646182635016,10.08017024,98.998,98.93,15.1624]
[1646182635216,1.39892421,98.999,98.93,15.1624]
[1646182635418,1.39892421,98.999,98.931,2.57366348]
[1646182635619,1.39892421,99.015,98.957,5.0]
[1646182635817,13.9841259,99.039,98.957,5.0]
[1646182636019,24.6986,99.062,98.958,24.45727429]
[1646182636218,24.6986,99.062,98.96,12.15]
[1646182636417,8.71387692,99.061,98.97,50.5043]
[1646182636618,8.71387692,99.061,98.98,12.15]
[1646182636817,4.038,99.082,98.98,27.3013]
[1646182637222,4.038,99.092,98.997,5.0]
[1646182637422,8.72602586,99.081,99.01,12.15]
[1646182637618,8.72602586,99.081,99.01,62.6303]
[1646182637818,8.72602586,99.105,99.011,2.57366348]
[1646182638019,8.72602586,99.105,99.02,15.1441]
[1646182638220,56.35751999,99.106,99.021,2.85843807]
[1646182638420,158.85751999,99.106,99.021,5.43210155]
[1646182638620,158.85751999,99.106,99.021,2.85843807]
[1646182638820,2.52722456,99.105,99.021,2.85843807]
[1646182640222,102.5,99.099,99.021,2.85843807]
[1646182640622,104.11118319,99.099,99.0,52.6172]
[1646182640824,1.83129049,99.098,99.0,37.7126]
[1646182641021,1.83129049,99.098,99.0,22.5645]
[1646182641222,1.95692376,99.088,99.0,22.5645]
[1646182641623,1.52371039,99.085,99.0,22.5645]
[1646182643628,53.84305679,99.087,99.0,22.5645]
[1646182643826,53.84305679,99.087,99.0,37.7134]
[1646182644227,1.39892421,99.127,99.001,49.79542703]
[1646182644428,4.037,99.126,99.001,49.79542703]
[1646182644628,4.037,99.129,99.002,64.3524913]
[1646182644828,102.5,99.125,99.002,64.3524913]
[1646182645032,4.037,99.124,99.007,5.0]
[1646182645228,102.5,99.122,99.011,2.56019915]
[1646182645431,4.037,99.121,99.011,2.56019915]
[1646182645631,4.037,99.122,99.03,15.1438]
[1646182645929,106.537,99.122,99.031,27.22689126]
[1646182646129,1.82628179,99.121,99.031,27.22689126]
[1646182646333,2.52722456,99.122,99.031,27.22689126]
[1646182646630,52.24540733,99.123,99.031,27.22689126]
[1646182647031,102.5,99.122,99.031,27.22689126]
[1646182647830,52.24540733,99.123,99.031,27.22689126]
[1646182647831,102.5,99.119,99.031,27.22689126]
[1646182648031,1.89386739,99.118,99.031,27.22689126]
[1646182648233,1.89386739,99.118,99.02,5.0]
[1646182648432,1.89386739,99.118,99.019,2.57366348]
[1646182648831,104.39386739,99.118,99.019,2.57366348]
[1646182649032,1.85236598,99.117,99.019,2.57366348]
[1646182649231,1.85236598,99.117,99.02,34.10189589]
[1646182650033,102.5,99.109,99.02,34.10189589]
[1646182650233,53.53372255,99.107,99.02,36.67555937]
[1646182650432,53.53372255,99.107,99.02,51.82145937]
[1646182650632,156.03372255,99.107,99.02,51.82145937]
[1646182650832,157.85153924,99.107,99.02,51.82145937]
[1646182653336,53.53372255,99.107,99.02,51.82145937]
[1646182653534,102.5,99.128,99.02,63.97145937]
[1646182653733,102.5,99.128,99.021,22.92361081]
[1646182653934,102.5,99.128,99.027,5.0]
[1646182654134,102.5,99.128,99.04,15.1426]
[1646182654535,149.75135465,99.127,99.041,2.04752733]
[1646182654734,47.25135465,99.127,99.041,4.62119081]
[1646182654935,47.25135465,99.127,99.042,2.57366348]
[1646182655339,149.75135465,99.127,99.042,2.57366348]
[1646182655534,47.25135465,99.127,99.042,2.57366348]
[1646182659041,104.09557807,99.126,99.042,2.57366348]
[1646182659243,0.55963147,99.124,99.02,15.1451]
[1646182659840,0.61821428,99.117,99.02,15.1451]
[1646182660040,0.61821428,99.117,99.021,34.84200484]
[1646182660739,0.61821428,99.115,99.021,34.84200484]
[1646182660941,1.97841513,99.108,99.006,4.037]
[1646182661139,0.61821428,99.107,99.0,15.1483]
[1646182661340,3.14543884,99.107,99.0,15.1483]
[1646182661940,3.14543884,99.107,99.014,33.05349801]
[1646182662145,104.0246445,99.099,99.014,33.05349801]
[1646182662341,0.47897934,99.098,99.014,33.05349801]
[1646182663941,1.87790355,99.098,99.0,15.1483]
[1646182664942,1.87790355,99.098,99.012,28.61609848]
[1646182665144,1.39892421,99.097,99.012,28.61609848]
[1646182665543,1.78845702,99.108,99.012,28.61609848]
[1646182665946,1.39892421,99.113,99.013,52.34926348]
[1646182666147,1.39892421,99.12,99.014,26.96061081]
[1646182666348,1.39892421,99.12,99.014,52.16009688]
[1646182666549,1.39892421,99.121,99.015,64.90715796]
[1646182666748,1.39892421,99.128,99.02,12.15]
[1646182666946,1.52594149,99.148,99.04,15.1422]
[1646182666947,102.5,99.127,99.04,15.1422]
[1646182667148,24.2603,99.129,99.041,7.53332474]
[1646182667349,1.39892421,99.127,99.041,7.53332474]
[1646182667553,1.39892421,99.126,99.041,7.53332474]
[1646182668053,1.39892421,99.127,99.041,7.53332474]
[1646182668552,1.39892421,99.128,99.041,7.53332474]
[1646182668753,1.39892421,99.127,99.041,7.53332474]
[1646182669153,1.39892421,99.125,99.041,7.53332474]
[1646182669554,1.39892421,99.125,99.041,22.78072474]
[1646182671556,1.39892421,99.124,99.041,22.78072474]
[1646182671755,102.5,99.108,99.04,15.1422]
[1646182671956,102.5,99.108,99.03,5.0]
[1646182672159,102.5,99.108,99.02,15.1457]
[1646182672759,51.7309106,99.109,99.021,34.28770917]
[1646182673161,51.7309106,99.109,99.03,15.1445]
[1646182673772,51.7309106,99.109,99.031,2.57366348]
[1646182674373,51.7309106,99.109,99.04,15.1424]
[1646182674574,51.7309106,99.109,99.041,1.86171405]
[1646182678678,51.7309106,99.109,99.04,15.1424]
[1646182679679,51.7309106,99.109,99.041,32.48089341]
[1646182681182,1.39892421,99.118,99.05,15.1414]
[1646182681382,1.39892421,99.131,99.05,27.2914]
[1646182681585,1.39892421,99.142,99.051,2.57366348]
[1646182681885,1.39892421,99.144,99.057,5.0]
[1646182682081,1.39892421,99.144,99.06,12.15]
[1646182682283,47.1586,99.192,99.071,3.66852981]
[1646182682284,1.39892421,99.162,99.071,3.66852981]
[1646182682482,1.39892421,99.165,99.071,26.74092981]
[1646182682681,47.1586,99.192,99.09,5.0]
[1646182682682,1.39892421,99.168,99.09,5.0]
[1646182682882,1.39892421,99.18,99.1,12.15]
[1646182683083,1.95988807,99.225,99.1,12.15]
[1646182683084,1.39892421,99.2,99.1,12.15]
[1646182683283,56.7336481,99.199,99.102,25.55672666]
[1646182683485,1.39892421,99.203,99.12,15.1278]
[1646182683683,1.39892421,99.215,99.12,27.2778]
[1646182683882,1.39892421,99.227,99.122,102.5]
[1646182684084,1.39892421,99.245,99.121,67.0188556]
[1646182684283,4.032,99.244,99.123,16.78406108]
[1646182684583,50.5484565,99.243,99.124,10.0860552]
[1646182684783,104.44517225,99.242,99.15,15.1239]
[1646182684982,1.80982686,99.241,99.157,5.0]
[1646182685383,1.6556355,99.239,99.157,5.0]
[1646182685784,1.50739631,99.236,99.157,5.0]
[1646182686183,1.96870948,99.234,99.157,5.0]
[1646182686382,1.96870948,99.234,99.102,23.8997]
[1646182686582,1.90756099,99.232,99.102,23.8997]
[1646182686786,1.99133766,99.218,99.102,23.8997]
[1646182686985,2.34289031,99.215,99.092,5.0]
[1646182687183,2.34289031,99.215,99.093,24.96248383]
[1646182687184,2.46939009,99.213,99.093,24.96248383]
[1646182687382,1.81256344,99.198,99.092,5.0]
[1646182687582,0.5791267,99.197,99.092,5.0]
[1646182687783,3.10625343,99.197,99.092,5.0]
[1646182688183,1.51651763,99.188,99.08,15.1369]
[1646182688383,0.5791267,99.187,99.086,34.52649827]
[1646182688783,4.033,99.186,99.086,34.52649827]
[1646182688983,4.033,99.187,99.086,34.52649827]
[1646182689284,2.52712673,99.185,99.08,15.1369]
[1646182689485,0.45174657,99.183,99.08,15.1369]
[1646182689685,4.035,99.182,99.08,15.1369]
[1646182689885,0.44741886,99.183,99.08,15.1369]
[1646182690084,1.86157437,99.178,99.072,5.0]
[1646182690284,0.49884069,99.177,99.073,26.27455874]
[1646182691386,0.49884069,99.178,99.073,26.27455874]
[1646182692086,15.1369,99.18,99.074,2.57366348]
[1646182692487,102.5,99.187,99.075,5.0]
[1646182692688,102.5,99.187,99.08,12.15]
[1646182692890,1.8975853,99.2,99.08,12.15]
[1646182693087,4.033,99.209,99.08,27.2852]
[1646182693288,4.033,99.216,99.084,61.39]
[1646182693489,4.033,99.218,99.084,61.39]
[1646182693790,4.033,99.218,99.081,62.1682249]
[1646182693791,15.1283,99.24,99.127,5.0]
[1646182693988,1.53133117,99.239,99.127,5.0]
[1646182694193,1.87209282,99.238,99.127,5.0]
[1646182694388,1.65299071,99.236,99.127,5.0]
[1646182694690,0.45926647,99.234,99.101,24.7621]
[1646182694889,1.76160268,99.218,99.101,24.7621]
[1646182695092,1.67599652,99.215,99.11,15.1312]
[1646182695491,1.7765666,99.212,99.111,33.76592972]
[1646182696092,102.5,99.209,99.111,2.57366348]
[1646182696294,1.83983511,99.198,99.08,15.0029]
[1646182696591,0.61644406,99.197,99.075,2.57366348]
[1646182696791,0.11644406,99.197,99.075,2.57366348]
[1646182696992,102.5,99.196,99.082,31.80563775]
[1646182697194,1.76701509,99.195,99.082,31.80563775]
[1646182697398,1.85855615,99.188,99.082,31.80563775]
[1646182697991,15.1383,99.18,99.082,31.80563775]
[1646182698194,102.5,99.177,99.088,2.57366348]
[1646182698795,1.65336576,99.176,99.072,5.0]
[1646182699194,102.5,99.169,99.072,5.0]
[1646182699396,1.50141761,99.168,99.072,5.0]
[1646182699595,4.035,99.167,99.048,2.57366348]
[1646182699795,1.911285,99.165,99.048,2.57366348]
[1646182699995,1.80086126,99.161,99.048,2.57366348]
[1646182700195,102.5,99.159,99.048,2.57366348]
[1646182700395,102.5,99.159,99.049,28.47907344]
[1646182700595,27.2909,99.16,99.049,28.47907344]
[1646182700797,45.71023503,99.163,99.05,54.30823692]
[1646182700998,45.71023503,99.163,99.051,4.035]
[1646182701196,45.71023503,99.163,99.052,102.5]
[1646182701399,45.71023503,99.163,99.053,4.035]
[1646182701598,45.71023503,99.163,99.054,102.5]
[1646182701796,45.71023503,99.163,99.055,4.035]
[1646182701996,45.71023503,99.163,99.071,4.97883025]
[1646182702198,45.71023503,99.163,99.102,5.0]
[1646182702599,48.4583,99.209,99.103,2.57366348]
[1646182702802,4.033,99.219,99.11,12.15]
[1646182702998,4.033,99.239,99.118,0.1519578]
[1646182703198,23.6505,99.238,99.119,4.033]
[1646182703398,23.6505,99.238,99.119,31.05073692]
[1646182703599,53.5232072,99.237,99.12,29.9540173]
[1646182703799,102.5,99.236,99.121,4.033]
[1646182704002,102.5,99.229,99.14,15.1271]
[1646182704299,1.88699009,99.226,99.135,5.84072236]
[1646182704498,4.033,99.225,99.12,2.57366348]
[1646182704699,102.5,99.227,99.12,2.57366348]
[1646182704898,102.5,99.219,99.13,15.1314]
[1646182705098,15.131,99.22,99.13,15.1314]
[1646182705299,102.5,99.219,99.13,15.1314]
[1646182705499,102.5,99.217,99.13,15.1314]
[1646182706107,102.5,99.209,99.118,46.0876]
[1646182706603,102.5,99.209,99.118,48.66126348]
[1646182706802,102.5,99.209,99.119,28.39451895]
[1646182707003,1.77349226,99.216,99.119,28.39451895]
[1646182707601,1.77349226,99.216,99.12,15.1332]
[1646182708607,1.77349226,99.216,99.121,2.57366348]
[1646182710004,1.77349226,99.216,99.122,34.07466937]
[1646182710202,3.17241647,99.216,99.122,34.07466937]
[1646182710402,1.51492033,99.208,99.122,34.07466937]
[1646182710803,1.51492033,99.208,99.121,2.57366348]
[1646182712507,15.1351,99.2,99.1,15.1351]
[1646182712707,1.56500945,99.188,99.1,15.1351]
[1646182712907,1.56500945,99.188,99.07,50.456]
[1646182712908,1.56500945,99.188,99.072,4.033]
[1646182713306,0.37708504,99.187,99.064,4.035]
[1646182713506,0.37708504,99.187,99.064,15.3638]
[1646182713507,1.82752662,99.185,99.064,15.3638]
[1646182713709,0.37708504,99.184,99.045,24.44407344]
[1646182713908,1.7654378,99.168,99.046,4.035]
[1646182714109,1.88556553,99.165,99.06,15.1412]
[1646182714311,1.88556553,99.165,99.061,4.035]
[1646182714708,1.50823677,99.162,99.062,33.12664423]
[1646182714931,1.50823677,99.162,99.063,4.035]
[1646182715732,102.5,99.149,99.06,15.1412]
[1646182715935,102.5,99.149,99.051,4.035]
[1646182715936,1.77093103,99.148,99.051,4.035]
[1646182716135,1.69252736,99.138,99.04,15.1445]
[1646182716333,102.5,99.129,99.04,15.1445]
[1646182716533,4.035,99.147,99.04,15.1445]
[1646182716835,104.26067431,99.145,99.041,29.9402221]
[1646182717233,104.26067431,99.145,99.042,2.57366348]
[1646182717432,104.26067431,99.145,99.05,15.1436]
[1646182717632,102.5,99.145,99.05,15.1436]
[1646182717836,102.5,99.145,99.051,2.57366348]
[1646182718836,102.5,99.145,99.06,15.1424]
[1646182719035,102.5,99.145,99.061,8.27622324]
[1646182719236,104.4574075,99.145,99.061,8.27622324]
[1646182719837,104.4574075,99.145,99.07,15.1409]
[1646182720037,102.5,99.145,99.07,15.1409]
[1646182720639,49.9715285,99.146,99.071,2.57366348]
[1646182720938,49.9715285,99.146,99.08,15.139]
[1646182721140,49.9715285,99.146,99.081,27.36655862]
[1646182721440,4.035,99.189,99.081,29.9402221]
[1646182721641,153.7306,99.198,99.082,2.73415135]
[1646182721840,149.6956,99.198,99.082,27.17822479]
[1646182722043,149.6956,99.198,99.084,0.1711067]
[1646182722244,50.8623706,99.171,99.085,4.035]
[1646182722540,50.8623706,99.171,99.085,6.60866348]
[1646182722742,50.8623706,99.171,99.086,2.57366348]
[1646182722942,50.8623706,99.171,99.087,4.035]
[1646182723142,50.8623706,99.171,99.101,8.27622324]